lending/lending_fUSD_20250808
["ID","MTS","AMOUNT","RATE_DAILY","PERIOD"]
[377914413,1754613115706,-400.0,0.00021095,2]
[377914414,1754613115716,-432.47090806,0.00021095,2]
[377914415,1754613115726,-433.15,0.00021095,2]
[377914416,1754613115735,-644.96,0.00021095,2]
[377914417,1754613115745,-969.77,0.00021095,2]
[377914418,1754613115754,-711.54,0.00021095,2]
[377914419,1754613115764,-615.2,0.00021095,2]
[377914420,1754613115774,-1326.15,0.00021095,2]
[377914421,1754613115783,-580.71,0.00021095,2]
[377914422,1754613115793,-745.61,0.00021095,2]
[377914423,1754613115804,-777.93,0.00021095,2]
[377914424,1754613115813,-400.0,0.00021095,2]
[377914425,1754613115823,-533.67,0.00021095,2]
[377914426,1754613115833,-1146.04,0.00021095,2]
[377914427,1754613115842,-400.0,0.00021095,2]
[377914428,1754613115854,-1764.53,0.00021095,2]
[377914429,1754613115871,-400.0,0.00021095,2]
[377914430,1754613115881,-678.35,0.00021095,2]
[377914431,1754613115891,-595.92,0.00021095,2]
[377914432,1754613115903,-1128.98,0.00021095,2]
[377914433,1754613115914,-400.0,0.00021095,2]
[377914434,1754613115924,-422.82668228,0.00021095,2]
[377914435,1754613115934,-1058.02,0.00021095,2]
[377914436,1754613115946,-460.25,0.00021095,2]
[377914437,1754613115958,-467.91,0.00021095,2]
[377914438,1754613115968,-498.62,0.00021095,2]
[377914439,1754613115978,-684.85,0.00021095,2]
[377914440,1754613115988,-400.0,0.00021095,2]
[377914441,1754613115998,-1822.08,0.00021095,2]
[377914442,1754613116008,-519.11,0.00021095,2]
[377914443,1754613116018,-834.5,0.00021095,2]
[377914444,1754613116029,-400.0,0.00021095,2]
[377914445,1754613116039,-400.0,0.00021095,2]
[377914446,1754613116049,-400.0,0.00021095,2]
[377914447,1754613116058,-431.49,0.00021095,2]
[377914448,1754613116067,-400.0,0.00021095,2]
[377914449,1754613116077,-400.0,0.00021095,2]
[377914450,1754613116086,-372.82486815,0.00021095,2]
[377914451,1754613116097,-756.51,0.00021095,2]
[377914452,1754613116203,-474.3,0.00021095,2]
[377914453,1754613116214,-753.02,0.00021095,2]
[377914454,1754613116225,-400.0,0.00021095,2]
[377914455,1754613116235,-400.0,0.00021095,2]
[377914456,1754613116245,-400.0,0.00021095,2]
[377914457,1754613116255,-530.37,0.00021095,2]
[377914458,1754613116264,-1312.14,0.00021095,2]
[377914459,1754613116274,-400.0,0.00021095,2]
[377914460,1754613116283,-664.1,0.00021095,2]
[377914461,1754613116294,-723.03,0.00021095,2]
[377914462,1754613116304,-488.75,0.00021095,2]
[377914463,1754613116314,-753.14,0.00021095,2]
[377914464,1754613116323,-400.0,0.00021095,2]
[377914465,1754613116333,-481.93,0.00021095,2]
[377914466,1754613116342,-1362.2,0.00021095,2]
[377914467,1754613116352,-681.29,0.00021095,2]
[377914468,1754613116361,-1202.92,0.00021095,2]
[377914469,1754613116373,-400.0,0.00021095,2]
[377914470,1754613116382,-908.09,0.00021095,2]
[377914471,1754613116391,-1356.82,0.00021095,2]
[377914472,1754613116401,-400.0,0.00021095,2]
[377914473,1754613116411,-642.93,0.00021095,2]
[377914474,1754613116420,-558.14,0.00021095,2]
[377914475,1754613116431,-400.0,0.00021095,2]
[377914476,1754613116443,-473.3,0.00021095,2]
[377914477,1754613116454,-857.38,0.00021095,2]
[377914478,1754613116464,-600.87,0.00021095,2]
[377914479,1754613116474,-400.0,0.00021095,2]
[377914480,1754613116483,-1113.28,0.00021095,2]
[377914481,1754613116494,-1063.89,0.00021095,2]
[377914482,1754613116505,-766.74,0.00021095,2]
[377914483,1754613116515,-702.23,0.00021095,2]
[377914484,1754613116525,-400.0,0.00021095,2]
[377914485,1754613116535,-697.81,0.00021095,2]
[377914486,1754613116545,-593.88,0.00021095,2]
[377914487,1754613116555,-565.06,0.00021095,2]
[377914488,1754613116565,-1013.85,0.00021095,2]
[377914489,1754613116575,-1070.57,0.00021095,2]
[377914490,1754613116585,-835.59,0.00021095,2]
[377914491,1754613116595,-787.56,0.00021095,2]
[377914492,1754613116604,-714.37,0.00021095,2]
[377914493,1754613116614,-805.74,0.00021095,2]
[377914494,1754613116627,-400.0,0.00021095,2]
[377914495,1754613116637,-400.0,0.00021095,2]
[377914496,1754613116646,-400.0,0.00021095,2]
[377914497,1754613116656,-446.94,0.00021095,2]
[377914498,1754613116665,-518.84,0.00021095,2]
[377914499,1754613116675,-634.1,0.00021095,2]
[377914500,1754613116685,-997.03,0.00021095,2]
[377914501,1754613116695,-668.96,0.00021095,2]
[377914502,1754613116705,-1310.15,0.00021095,2]
[377914503,1754613116715,-602.12,0.00021095,2]
[377914504,1754613116725,-542.82,0.00021095,2]
[377914505,1754613116735,-823.13,0.00021095,2]
[377914506,1754613116745,-539.85,0.00021095,2]
[377914507,1754613116755,-1520.38,0.00021095,2]
[377914508,1754613116765,-677.81,0.00021095,2]
[377914509,1754613116775,-400.0,0.00021095,2]
[377914510,1754613116785,-1166.4,0.00021095,2]
[377914511,1754613116795,-175.79325111,0.00021095,2]
[377914512,1754613116805,-400.0,0.00021095,2]
[377914513,1754613116814,-440.74,0.00021095,2]
[377914514,1754613116824,-400.0,0.00021095,2]
[377914515,1754613116834,-400.0,0.00021095,2]
[377914516,1754613116844,-1322.15,0.00021095,2]
[377914517,1754613116854,-400.0,0.00021095,2]
[377914518,1754613116868,-400.0,0.00021095,2]
[377914519,1754613116878,-400.0,0.00021095,2]
[377914520,1754613116888,-400.0,0.00021095,2]
[377914521,1754613116898,-439.53,0.00021095,2]
[377914522,1754613116910,-1225.17,0.00021095,2]
[377914523,1754613116920,-729.31,0.00021095,2]
[377914524,1754613116930,-400.0,0.00021095,2]
[377914525,1754613116941,-455.12,0.00021095,2]
[377914526,1754613116951,-1460.14,0.00021095,2]
[377914527,1754613116961,-400.0,0.00021095,2]
[377914528,1754613116971,-400.0,0.00021095,2]
[377914529,1754613116980,-400.0,0.00021095,2]
[377914530,1754613116990,-535.87,0.00021095,2]
[377914531,1754613117000,-965.56,0.00021095,2]
[377914532,1754613117009,-400.0,0.00021095,2]
[377914533,1754613117019,-400.0,0.00021095,2]
[377914534,1754613117028,-400.0,0.00021095,2]
[377914535,1754613117038,-400.0,0.00021095,2]
[377914536,1754613117047,-400.0,0.00021095,2]
[377914537,1754613117057,-1112.82,0.00021095,2]
[377914538,1754613117066,-473.14,0.00021095,2]
[377914539,1754613117075,-1239.98,0.00021095,2]
[377914540,1754613117085,-400.0,0.00021095,2]
[377914541,1754613117095,-592.4,0.00021095,2]
[377914542,1754613117104,-400.0,0.00021095,2]
[377914543,1754613117114,-546.56,0.00021095,2]
[377914544,1754613117125,-400.0,0.00021095,2]
[377914545,1754613117135,-1121.49,0.00021095,2]
[377914546,1754613117145,-412.93,0.00021095,2]
[377914547,1754613117154,-400.0,0.00021095,2]
[377914548,1754613117164,-1332.23,0.00021095,2]
[377914549,1754613117174,-2373.45,0.00021095,2]
[377914550,1754613117183,-867.66,0.00021095,2]
[377914551,1754613117192,-400.0,0.00021095,2]
[377914552,1754613117202,-1921.83,0.00021095,2]
[377914553,1754613117212,-400.0,0.00021095,2]
[377914554,1754613117222,-400.0,0.00021095,2]
[377914555,1754613117232,-477.33,0.00021095,2]
[377914556,1754613117242,-403.80120979,0.00021095,2]
[377914557,1754613117251,-586.09,0.00021095,2]
[377914558,1754613117261,-633.66,0.00021095,2]
[377914559,1754613117271,-400.0,0.00021095,2]
[377914560,1754613117281,-434.62,0.00021095,2]
[377914561,1754613117291,-400.0,0.00021095,2]
[377914562,1754613117300,-1031.22,0.00021095,2]
[377914563,1754613117310,-400.0,0.00021095,2]
[377914564,1754613117319,-400.0,0.00021095,2]
[377914565,1754613117329,-591.29,0.00021095,2]
[377914566,1754613117339,-1239.8,0.00021095,2]
[377914567,1754613117349,-419.72,0.00021095,2]
[377914568,1754613117358,-765.3,0.00021095,2]
[377914569,1754613117369,-433.91,0.00021095,2]
[377914570,1754613117378,-1091.91,0.00021095,2]
[377914571,1754613117388,-718.67,0.00021095,2]
[377914572,1754613117398,-400.0,0.00021095,2]
[377914573,1754613117408,-942.73,0.00021095,2]
[377914574,1754613117417,-400.0,0.00021095,2]
[377914575,1754613117427,-655.59,0.00021095,2]
[377914576,1754613117437,-549.44,0.00021095,2]
[377914577,1754613117446,-706.48,0.00021095,2]
[377914578,1754613117456,-798.23,0.00021095,2]
[377914579,1754613117466,-1153.34,0.00021095,2]
[377914580,1754613117476,-1177.75,0.00021095,2]
[377914581,1754613117486,-549.94,0.00021095,2]
[377914582,1754613117496,-560.12,0.00021095,2]
[377914583,1754613117506,-819.45,0.00021095,2]
[377914584,1754613117515,-472.38,0.00021095,2]
[377914585,1754613117526,-895.98,0.00021095,2]
[377914586,1754613117535,-804.91,0.00021095,2]
[377914587,1754613117546,-400.0,0.00021095,2]
[377914588,1754613117556,-400.0,0.00021095,2]
[377914589,1754613117565,-638.56,0.00021095,2]
[377914590,1754613117575,-1000.0,0.00021095,2]
[377914591,1754613117585,-1258.89,0.00021095,2]
[377914592,1754613117595,-593.81,0.00021095,2]
[377914593,1754613117606,-352.152162,0.00021095,2]
[377914594,1754613117615,-352.152162,0.00021095,2]
[377914595,1754613117627,-420.834801,0.00021095,2]
[377914596,1754613117636,-420.834801,0.00021095,2]
[377914597,1754613117647,-400.0,0.00021095,2]
[377914598,1754613117656,-400.0,0.00021095,2]
[377914599,1754613117666,-622.14,0.00021095,2]
[377914600,1754613117675,-400.0,0.00021095,2]
[377914601,1754613117685,-1287.29,0.00021095,2]
[377914602,1754613117694,-1105.48,0.00021095,2]
[377914603,1754613117704,-1707.57,0.00021095,2]
[377914604,1754613117714,-1063.27,0.00021095,2]
[377914605,1754613117723,-1515.17,0.00021095,2]
[377914606,1754613117733,-1621.03,0.00021095,2]
[377914607,1754613117742,-400.0,0.00021095,2]
[377914608,1754613117752,-400.0,0.00021095,2]
[377914609,1754613117761,-577.01,0.00021095,2]
[377914610,1754613117772,-877.01,0.00021095,2]
[377914611,1754613117782,-400.0,0.00021095,2]
[377914612,1754613117791,-400.0,0.00021095,2]
[377914613,1754613117801,-400.0,0.00021095,2]
[377914614,1754613117811,-1622.23,0.00021095,2]
[377914615,1754613117821,-400.0,0.00021095,2]
[377914616,1754613117830,-1480.91,0.00021095,2]
[377914617,1754613117840,-400.0,0.00021095,2]
[377914618,1754613117849,-400.0,0.00021095,2]
[377914619,1754613117861,-981.54,0.00021095,2]
[377914620,1754613117873,-400.0,0.00021095,2]
[377914621,1754613117883,-246.791616,0.00021095,2]
[377914622,1754613117894,-1040.41,0.00021095,2]
[377914623,1754613117904,-246.791616,0.00021095,2]
[377914624,1754613117914,-400.0,0.00021095,2]
[377914625,1754613117924,-447.12,0.00021095,2]
[377914626,1754613117936,-400.0,0.00021095,2]
[377914627,1754613117947,-1390.26,0.00021095,2]
[377914628,1754613117956,-1312.79,0.00021095,2]
[377914629,1754613117967,-446.5,0.00021095,2]
[377914630,1754613117976,-1460.09,0.00021095,2]
[377914631,1754613117986,-806.42,0.00021095,2]
[377914632,1754613117996,-680.12,0.00021095,2]
[377914633,1754613118006,-783.24,0.00021095,2]
[377914634,1754613118016,-998.91,0.00021095,2]
[377914635,1754613118026,-400.0,0.00021095,2]
[377914636,1754613118036,-400.0,0.00021095,2]
[377914637,1754613118046,-436.39,0.00021095,2]
[377914638,1754613118056,-633.1,0.00021095,2]
[377914639,1754613118066,-408.97,0.00021095,2]
[377914640,1754613118075,-803.71,0.00021095,2]
[377914641,1754613118084,-400.0,0.00021095,2]
[377914642,1754613118094,-1211.14,0.00021095,2]
[377914643,1754613118104,-832.28,0.00021095,2]
[377914644,1754613118113,-400.0,0.00021095,2]
[377914645,1754613118126,-400.0,0.00021095,2]
[377914646,1754613118140,-400.0,0.00021095,2]
[377914647,1754613118150,-400.0,0.00021095,2]
[377914648,1754613118159,-400.0,0.00021095,2]
[377914649,1754613118169,-634.61,0.00021095,2]
[377914650,1754613118179,-400.0,0.00021095,2]
[377914651,1754613118189,-1042.43,0.00021095,2]
[377914652,1754613118199,-411.96,0.00021095,2]
[377914653,1754613118209,-707.32,0.00021095,2]
[377914654,1754613118220,-455.66,0.00021095,2]
[377914655,1754613118229,-400.0,0.00021095,2]
[377914656,1754613118239,-854.23,0.00021095,2]
[377914657,1754613118248,-9366.87,0.00021095,2]
[377914658,1754613118258,-1513.02,0.00021095,2]
[377914659,1754613118268,-484.41,0.00021095,2]
[377914660,1754613118277,-801.68,0.00021095,2]
[377914661,1754613118288,-447.08,0.00021095,2]
[377914662,1754613118297,-1103.08,0.00021095,2]
[377914663,1754613118307,-400.0,0.00021095,2]
[377914664,1754613118523,-400.0,0.00021095,2]
[377914665,1754613118533,-1785.26,0.00021095,2]
[377914666,1754613118543,-400.0,0.00021095,2]
[377914667,1754613118552,-400.0,0.00021095,2]
[377914668,1754613118562,-1209.1,0.00021095,2]
[377914669,1754613118571,-400.0,0.00021095,2]
[377914670,1754613118581,-512.05,0.00021095,2]
[377914671,1754613118591,-1338.39,0.00021095,2]
[377914672,1754613118601,-837.98,0.00021095,2]
[377914673,1754613118611,-400.0,0.00021095,2]
[377914674,1754613118622,-467.43,0.00021095,2]
[377914675,1754613118632,-400.0,0.00021095,2]
[377914676,1754613118642,-588.83,0.00021095,2]
[377914677,1754613118651,-1005.96,0.00021095,2]
[377914678,1754613118661,-602.9,0.00021095,2]
[377914679,1754613118670,-1973.33,0.00021095,2]
[377914680,1754613118682,-969.26,0.00021095,2]
[377914681,1754613118693,-703.47,0.00021095,2]
[377914682,1754613118704,-1304.83,0.00021095,2]
[377914683,1754613118715,-2027.86,0.00021095,2]
[377914684,1754613118725,-688.65,0.00021095,2]
[377914685,1754613118735,-1312.78,0.00021095,2]
[377914686,1754613118746,-400.0,0.00021095,2]
[377914687,1754613118757,-400.0,0.00021095,2]
[377914688,1754613118767,-2100.2,0.00021095,2]
[377914689,1754613118777,-1134.28,0.00021095,2]
[377914690,1754613118787,-1569.86,0.00021095,2]
[377914691,1754613118796,-529.24,0.00021095,2]
[377914692,1754613118806,-1383.67,0.00021095,2]
[377914693,1754613118816,-400.0,0.00021095,2]
[377914694,1754613118827,-812.54,0.00021095,2]
[377914695,1754613118837,-871.51,0.00021095,2]
[377914696,1754613118847,-755.43,0.00021095,2]
[377914697,1754613118858,-801.5,0.00021095,2]
[377914698,1754613118869,-603.98,0.00021095,2]
[377914699,1754613118880,-400.0,0.00021095,2]
[377914700,1754613118890,-499.54047896,0.00021095,2]
[377914701,1754613118903,-1094.56,0.00021095,2]
[377914702,1754613118912,-400.0,0.00021095,2]
[377914703,1754613118922,-1864.15,0.00021095,2]
[377914704,1754613118932,-744.46,0.00021095,2]
[377914705,1754613118943,-1856.19,0.00021095,2]
[377914706,1754613118953,-574.05,0.00021095,2]
[377914707,1754613118963,-400.0,0.00021095,2]
[377914708,1754613118972,-2819.61,0.00021095,2]
[377914709,1754613118982,-963.74,0.00021095,2]
[377914710,1754613118992,-400.0,0.00021095,2]
[377914711,1754613119002,-400.0,0.00021095,2]
[377914712,1754613119013,-641.78,0.00021095,2]
[377914713,1754613119023,-400.0,0.00021095,2]
[377914714,1754613119033,-421.69,0.00021095,2]
[377914715,1754613119043,-1130.98,0.00021095,2]
[377914716,1754613119054,-711.52,0.00021095,2]
[377914717,1754613119064,-1482.22,0.00021095,2]
[377914718,1754613119074,-400.0,0.00021095,2]
[377914719,1754613119084,-1692.64,0.00021095,2]
[377914720,1754613119093,-400.0,0.00021095,2]
[377914721,1754613119103,-9960.13,0.00021095,2]
[377914722,1754613119113,-400.0,0.00021095,2]
[377914723,1754613119124,-561.73,0.00021095,2]
[377914724,1754613119134,-400.0,0.00021095,2]
[377914725,1754613119144,-500.34,0.00021095,2]
[377914726,1754613119154,-1592.3,0.00021095,2]
[377914727,1754613119164,-546.64,0.00021095,2]
[377914728,1754613119173,-606.66,0.00021095,2]
[377914729,1754613119183,-2507.14,0.00021095,2]
[377914730,1754613119193,-1471.57,0.00021095,2]
[377914731,1754613119202,-400.0,0.00021095,2]
[377914732,1754613119211,-400.0,0.00021095,2]
[377914733,1754613119223,-1316.78,0.00021095,2]
[377914734,1754613119233,-567.89,0.00021095,2]
[377914735,1754613119243,-1758.45,0.00021095,2]
[377914736,1754613119254,-400.0,0.00021095,2]
[377914737,1754613119266,-400.0,0.00021095,2]
[377914738,1754613119275,-1555.78,0.00021095,2]
[377914739,1754613119285,-1144.53,0.00021095,2]
[377914740,1754613119297,-1450.07,0.00021095,2]
[377914741,1754613119307,-973.9,0.00021095,2]
[377914742,1754613119319,-416.35,0.00021095,2]
[377914743,1754613119330,-2230.25,0.00021095,2]
[377914744,1754613119339,-400.0,0.00021095,2]
[377914745,1754613119349,-1577.14,0.00021095,2]
[377914746,1754613119360,-1658.19,0.00021095,2]
[377914747,1754613119370,-1949.39,0.00021095,2]
[377914748,1754613119379,-2189.36,0.00021095,2]
[377914749,1754613119389,-544.97,0.00021095,2]
[377914750,1754613119399,-400.0,0.00021095,2]
[377914751,1754613119409,-1668.74,0.00021095,2]
[377914752,1754613119418,-336.68789588,0.00021095,2]
[377914753,1754613119428,-400.0,0.00021095,2]
[377914754,1754613119437,-400.0,0.00021095,2]
[377914755,1754613119447,-1736.77,0.00021095,2]
[377914756,1754613119457,-723.41,0.00021095,2]
[377914757,1754613119466,-1506.04,0.00021095,2]
[377914758,1754613119476,-527.26,0.00021095,2]
[377914759,1754613119485,-1222.43,0.00021095,2]
[377914760,1754613119497,-1196.36,0.00021095,2]
[377914761,1754613119508,-2004.13,0.00021095,2]
[377914762,1754613119518,-444.47,0.00021095,2]
[377914763,1754613119527,-554.57,0.00021095,2]
[377914764,1754613119537,-1393.06,0.00021095,2]
[377914765,1754613119546,-2031.25,0.00021095,2]
[377914766,1754613119557,-1109.06,0.00021095,2]
[377914767,1754613119567,-624.86,0.00021095,2]
[377914768,1754613119580,-1290.07,0.00021095,2]
[377914769,1754613119592,-1460.91,0.00021095,2]
[377914770,1754613119602,-2592.74,0.00021095,2]
[377914771,1754613119616,-469.16,0.00021095,2]
[377914772,1754613119628,-2666.29,0.00021095,2]
[377914773,1754613119638,-2043.58,0.00021095,2]
[377914774,1754613119648,-1164.41,0.00021095,2]
[377914775,1754613119660,-1333.93,0.00021095,2]
[377914776,1754613119670,-694.8,0.00021095,2]
[377914777,1754613119680,-400.0,0.00021095,2]
[377914778,1754613119690,-750.53,0.00021095,2]
[377914779,1754613119701,-631.92,0.00021095,2]
[377914780,1754613119711,-518.35,0.00021095,2]
[377914781,1754613119721,-1164.69,0.00021095,2]
[377914782,1754613119731,-2811.47,0.00021095,2]
[377914783,1754613119741,-465.25,0.00021095,2]
[377914784,1754613119752,-543.99,0.00021095,2]
[377914785,1754613119762,-680.98,0.00021095,2]
[377914786,1754613119772,-1133.55,0.00021095,2]
[377914787,1754613119783,-440.22966985,0.00021095,2]
[377914788,1754613119794,-339.28015383,0.00021095,2]
[377914789,1754613119803,-4407.12,0.00021095,2]
[377914790,1754613119814,-1818.01,0.00021095,2]
[377914791,1754613119825,-1288.12,0.00021095,2]
[377914792,1754613119836,-1714.38,0.00021095,2]
[377914793,1754613119847,-1275.65,0.00021095,2]
[377914794,1754613119858,-1117.23,0.00021095,2]
[377914795,1754613119870,-961.95,0.00021095,2]
[377914796,1754613119881,-400.0,0.00021095,2]
[377914797,1754613119892,-453.21,0.00021095,2]
[377914798,1754613119903,-1383.67,0.00021095,2]
[377914799,1754613119914,-879.97,0.00021095,2]
[377914800,1754613119924,-400.0,0.00021095,2]
[377914801,1754613119937,-633.58,0.00021095,2]
[377914802,1754613119947,-1989.79,0.00021095,2]
[377914803,1754613119957,-1604.94,0.00021095,2]
[377914804,1754613119968,-400.0,0.00021095,2]
[377914805,1754613119978,-1105.6,0.00021095,2]
[377914806,1754613119989,-426.59,0.00021095,2]
[377914807,1754613120000,-1061.62,0.00021095,2]
[377914808,1754613120011,-446.1,0.00021095,2]
[377914809,1754613120024,-400.0,0.00021095,2]
[377914810,1754613120034,-2286.48,0.00021095,2]
[377914811,1754613120045,-1419.58,0.00021095,2]
[377914812,1754613120057,-608.07,0.00021095,2]
[377914813,1754613120068,-1349.34,0.00021095,2]
[377914814,1754613120078,-400.0,0.00021095,2]
[377914815,1754613120089,-1214.9,0.00021095,2]
[377914816,1754613120099,-994.63,0.00021095,2]
[377914817,1754613120111,-2503.56,0.00021095,2]
[377914818,1754613120122,-400.0,0.00021095,2]
[377914819,1754613120133,-400.0,0.00021095,2]
[377914820,1754613120143,-668.68,0.00021095,2]
[377914821,1754613120153,-2034.76,0.00021095,2]
[377914822,1754613120163,-578.7,0.00021095,2]
[377914823,1754613120174,-1276.94,0.00021095,2]
[377914824,1754613120184,-1528.92,0.00021095,2]
[377914825,1754613120194,-400.0,0.00021095,2]
[377914826,1754613120205,-400.0,0.00021095,2]
[377914827,1754613120216,-1646.26,0.00021095,2]
[377914828,1754613120226,-1889.62,0.00021095,2]
[377914829,1754613120236,-1501.0,0.00021095,2]
[377914830,1754613120246,-1025.64,0.00021095,2]
[377914831,1754613120256,-2128.65,0.00021095,2]
[377914832,1754613120267,-1492.79,0.00021095,2]
[377914833,1754613120278,-547.41,0.00021095,2]
[377914834,1754613120288,-1086.24,0.00021095,2]
[377914835,1754613120299,-400.0,0.00021095,2]
[377914836,1754613120309,-400.0,0.00021095,2]
[377914837,1754613120320,-607.0,0.00021095,2]
[377914838,1754613120331,-1345.75,0.00021095,2]
[377914839,1754613120342,-420.32,0.00021095,2]
[377914840,1754613120353,-1120.37,0.00021095,2]
[377914841,1754613120364,-489.48,0.00021095,2]
[377914842,1754613120377,-1434.86,0.00021095,2]
[377914843,1754613120387,-400.0,0.00021095,2]
[377914844,1754613120397,-1951.53,0.00021095,2]
[377914845,1754613120407,-917.26,0.00021095,2]
[377914846,1754613120418,-2325.69,0.00021095,2]
[377914847,1754613120429,-1376.02,0.00021095,2]
[377914848,1754613120439,-1065.9,0.00021095,2]
[377914849,1754613120450,-1350.78,0.00021095,2]
[377914850,1754613120460,-1151.09,0.00021095,2]
[377914851,1754613120470,-451.49,0.00021095,2]
[377914852,1754613120480,-400.0,0.00021095,2]
[377914853,1754613120490,-400.0,0.00021095,2]
[377914854,1754613120500,-1657.63,0.00021095,2]
[377914855,1754613120511,-1848.96,0.00021095,2]
[377914856,1754613120521,-1826.78,0.00021095,2]
[377914857,1754613120533,-1409.09,0.00021095,2]
[377914858,1754613120543,-400.0,0.00021095,2]
[377914859,1754613120553,-400.0,0.00021095,2]
[377914860,1754613120563,-400.0,0.00021095,2]
[377914861,1754613120573,-400.0,0.00021095,2]
[377914862,1754613120583,-1400.02,0.00021095,2]
[377914863,1754613120593,-608.66,0.00021095,2]
[377914864,1754613120604,-2074.91,0.00021095,2]
[377914865,1754613120615,-400.0,0.00021095,2]
[377914866,1754613120628,-1588.59,0.00021095,2]
[377914867,1754613120638,-2222.15,0.00021095,2]
[377914868,1754613120648,-1481.84,0.00021095,2]
[377914869,1754613120658,-1119.1,0.00021095,2]
[377914870,1754613120668,-880.06,0.00021095,2]
[377914871,1754613120678,-1688.74,0.00021095,2]
[377914872,1754613120688,-1345.58,0.00021095,2]
[377914873,1754613120698,-1888.11,0.00021095,2]
[377914874,1754613120708,-2547.87,0.00021095,2]
[377914875,1754613120718,-400.0,0.00021095,2]
[377914876,1754613120728,-1803.23,0.00021095,2]
[377914877,1754613120738,-3068.61,0.00021095,2]
[377914878,1754613120748,-3553.23,0.00021095,2]
[377914879,1754613120758,-846.92,0.00021095,2]
[377914880,1754613120769,-400.0,0.00021095,2]
[377914881,1754613120779,-1278.15,0.00021095,2]
[377914882,1754613120790,-1857.98,0.00021095,2]
[377914883,1754613120800,-2027.95,0.00021095,2]
[377914884,1754613120809,-2016.9,0.00021095,2]
[377914885,1754613120820,-1218.73,0.00021095,2]
[377914886,1754613120829,-2106.04,0.00021095,2]
[377914887,1754613120839,-1934.76,0.00021095,2]
[377914888,1754613120850,-633.24,0.00021095,2]
[377914889,1754613120862,-881.02,0.00021095,2]
[377914890,1754613120874,-1410.86,0.00021095,2]
[377914891,1754613120885,-375.32204852,0.00021095,2]
[377914892,1754613120900,-400.0,0.00021095,2]
[377914893,1754613120910,-1461.11,0.00021095,2]
[377914894,1754613120921,-2341.65,0.00021095,2]
[377914895,1754613120931,-400.0,0.00021095,2]
[377914896,1754613120942,-1720.55,0.00021095,2]
[377914897,1754613120953,-1452.03,0.00021095,2]
[377914898,1754613120963,-1620.97,0.00021095,2]
[377914899,1754613120973,-496.68,0.00021095,2]
[377914900,1754613120983,-1617.17,0.00021095,2]
[377914901,1754613120994,-2144.18,0.00021095,2]
[377914902,1754613121004,-2107.78,0.00021095,2]
[377914903,1754613121014,-400.0,0.00021095,2]
[377914904,1754613121024,-634.15,0.00021095,2]
[377914905,1754613121034,-749.36,0.00021095,2]
[377914906,1754613121044,-558.88,0.00021095,2]
[377914907,1754613121054,-400.0,0.00021095,2]
[377914908,1754613121064,-2615.62,0.00021095,2]
[377914909,1754613121074,-1657.01,0.00021095,2]
[377914910,1754613121084,-1646.42,0.00021095,2]
[377914911,1754613121094,-400.0,0.00021095,2]
[377914912,1754613121104,-1193.46,0.00021095,2]